bitfinex-derivatives/quotes_BTCF0:USTF0_20251119
["timestamp","ask_amount","ask_price","bid_price","bid_amount"]
[1763511824902,0.00016262,92209.0,92208.0,0.08121]
[1763511826100,0.08432,92206.0,92204.0,0.05827822]
[1763511826306,0.36096262,92209.0,92202.0,0.26436]
[1763511826307,0.08432,92203.0,92202.0,0.26436]
[1763511826508,0.05826474,92203.0,92202.0,0.26436]
[1763511826707,0.05826474,92203.0,92202.0,0.34557]
[1763511827299,0.01518474,92203.0,92202.0,0.34557]
[1763511827995,0.36096262,92209.0,92208.0,0.1897181]
[1763511828204,0.1084595,92250.0,92208.0,0.1897181]
[1763511828205,8e-08,92254.0,92248.0,0.0249]
[1763511828403,0.02514,92287.0,92250.0,0.20923138]
[1763511828602,0.02514,92287.0,92266.0,0.03888142]
[1763511828603,0.08432,92270.0,92266.0,0.03888142]
[1763511828907,0.08432,92261.0,92260.0,0.15959803]
[1763511829105,0.08432,92261.0,92260.0,0.36299803]
[1763511829407,0.00016259,92270.0,92269.0,0.1896464]
[1763511829705,0.04124,92280.0,92270.0,0.00219803]
[1763511829906,0.04124,92280.0,92279.0,0.3608]
[1763511830406,0.08432,92280.0,92279.0,0.3608]
[1763511831410,0.0609535,92280.0,92279.0,0.3608]
[1763511831810,0.02514,92287.0,92279.0,0.3608]
[1763511831811,0.00016227,92289.0,92285.0,0.1084176]
[1763511832015,0.00016227,92289.0,92285.0,0.4692176]
[1763511832712,0.00016227,92289.0,92285.0,0.5504276]
[1763511833213,0.0012709,92286.0,92285.0,0.5504276]
[1763511834406,0.00016227,92289.0,92285.0,0.5504276]
[1763511834407,6.049e-05,92289.0,92288.0,0.09873]
[1763511834612,0.08432,92313.0,92312.0,0.1083859]
[1763511834806,0.08432,92313.0,92312.0,0.4691859]
[1763511835710,0.08432,92313.0,92312.0,0.3608]
[1763511836012,0.1083915,92308.0,92303.0,0.36096249]
[1763511836208,0.108395,92305.0,92303.0,0.36096249]
[1763511836910,0.1083895,92309.0,92304.0,0.1083952]
[1763511837211,0.1083895,92309.0,92307.0,0.1083911]
[1763511837412,0.3628,92313.0,92310.0,0.1083879]
[1763511837713,0.1083931,92306.0,92303.0,0.36096249]
[1763511838211,0.001,92308.0,92304.0,0.1083952]
[1763511838508,0.1083917,92307.0,92304.0,0.1083952]
[1763511838713,0.1083917,92307.0,92303.0,0.36096249]
[1763511838911,0.1083917,92307.0,92304.0,0.1083952]
[1763511839106,0.1083917,92307.0,92303.0,0.36096249]
[1763511839604,0.1083917,92307.0,92303.0,0.46935879]
[1763511839807,0.1083917,92307.0,92303.0,0.36096249]
[1763511840305,0.1726164,92286.0,92285.0,0.3608]
[1763511840614,0.0642,92276.0,92275.0,0.3608]
[1763511842411,0.00016215,92285.0,92275.0,0.44275]
[1763511842612,0.00016215,92285.0,92284.0,0.1084187]
[1763511842804,0.0642,92284.0,92283.0,0.3608]
[1763511843004,0.00016215,92285.0,92280.0,0.00219803]
[1763511843005,0.0642,92281.0,92280.0,0.00219803]
[1763511843208,0.0642,92274.0,92273.0,0.3608]
[1763511843409,0.1726305,92274.0,92273.0,0.3608]
[1763511844708,0.1726305,92274.0,92273.0,0.4692317]
[1763511844910,0.0642,92274.0,92273.0,0.4692317]
[1763511845215,0.4373033,92281.0,92280.0,0.1084234]
[1763511845405,0.4373033,92281.0,92280.0,0.11062143]
[1763511846820,0.4373033,92281.0,92280.0,0.00219803]
[1763511847617,0.4383033,92281.0,92280.0,0.00219803]
[1763511847916,0.32988,92281.0,92280.0,0.00219803]
[1763511848317,0.00016215,92285.0,92284.0,0.1903687]
[1763511848612,0.3608,92306.0,92300.0,0.1083996]
[1763511848613,0.0642,92301.0,92300.0,0.1083996]
[1763511848919,0.0642,92301.0,92300.0,0.11059763]
[1763511849507,0.0642,92301.0,92300.0,0.00219803]
[1763511849718,0.0642,92301.0,92246.0,0.6812077]
[1763511849719,0.0642,92292.0,92291.0,0.00016249]
[1763511849914,0.06388,92274.0,92265.0,0.3608]
[1763511850225,0.1084176,92285.0,92280.0,0.1084228]
[1763511850416,0.3608,92292.0,92280.0,0.00219803]
[1763511850417,0.06388,92281.0,92280.0,0.00219803]
[1763511851716,0.06388,92281.0,92274.0,0.03043]
[1763511851915,0.06388,92281.0,92271.0,0.00016249]
[1763511851916,0.06388,92274.0,92272.0,0.1084322]
[1763511852917,0.00016249,92290.0,92289.0,0.08195]
[1763511854614,0.06388,92288.0,92287.0,0.1084145]
[1763511854816,0.1084152,92287.0,92284.0,0.3608]
[1763511855123,0.1084152,92287.0,92284.0,0.4692176]
[1763511855517,0.06388,92285.0,92284.0,0.3608]
[1763511857411,0.06388,92285.0,92284.0,0.40004]
[1763511857614,0.1084169,92286.0,92285.0,0.03924]
[1763511857821,0.1403569,92286.0,92285.0,0.03924]
[1763511858019,0.06388,92281.0,92280.0,0.00219803]
[1763511858210,0.1723022,92281.0,92280.0,0.00219803]
[1763511858617,0.06388,92274.0,92273.0,0.3608]
[1763511859710,0.06388,92274.0,92273.0,0.40004]
[1763511859910,0.06388,92274.0,92273.0,0.3608]
[1763511861417,0.1084317,92273.0,92272.0,0.1476724]
[1763511861821,0.1469517,92273.0,92272.0,0.03924]
[1763511862122,0.01926,92272.0,92271.0,0.04738249]
[1763511862622,0.1084317,92273.0,92272.0,0.09792]
[1763511862824,0.001,92274.0,92273.0,0.1084316]
[1763511863013,0.001,92274.0,92273.0,0.1591316]
[1763511863211,0.001,92274.0,92273.0,0.2063516]
[1763511864022,0.1084289,92276.0,92273.0,0.2063516]
[1763511864324,0.03852,92275.0,92274.0,0.0302]
[1763511864840,0.1084289,92276.0,92258.0,0.0291535]
[1763511864841,0.1084481,92259.0,92258.0,0.0291535]
[1763511865126,0.1466328,92255.0,92254.0,0.3608]
[1763511865525,0.03818,92255.0,92254.0,0.3608]
[1763511866412,0.03818,92251.0,92250.0,0.00219803]
[1763511867513,0.1441334,92246.0,92245.0,0.00016259]
[1763511867718,0.4083734,92246.0,92245.0,0.00016259]
[1763511869225,0.1245493,92241.0,92240.0,0.00219803]
[1763511869819,0.1245493,92241.0,92235.0,0.03043]
[1763511869820,0.1411351,92236.0,92235.0,0.03043]
[1763511870428,0.1411351,92236.0,92235.0,0.12986]
[1763511870630,0.1401351,92236.0,92235.0,0.12986]
[1763511871019,0.1235551,92236.0,92235.0,0.12986]
[1763511871427,0.01608,92243.0,92242.0,0.2078981]
[1763511871637,0.00016259,92245.0,92244.0,0.09943]
[1763511873029,0.01624259,92245.0,92244.0,0.09943]
[1763511873325,0.01608,92241.0,92240.0,0.00219803]
[1763511873523,0.03266,92241.0,92240.0,0.00219803]
[1763511873824,0.1411293,92241.0,92240.0,0.05274803]
[1763511874019,0.03266,92241.0,92240.0,0.10162803]
[1763511874226,0.00016259,92245.0,92244.0,0.2078958]
[1763511874421,0.03282259,92245.0,92244.0,0.09943]
[1763511874622,0.03282259,92245.0,92244.0,0.12896]
[1763511874822,0.03282259,92245.0,92244.0,0.2374258]
[1763511875421,0.03282259,92245.0,92244.0,0.12896]
[1763511876821,0.39362259,92245.0,92244.0,0.12896]
[1763511878719,0.03266,92241.0,92240.0,0.00219803]
[1763511878917,0.1245552,92236.0,92235.0,0.12986]
[1763511879223,0.1411352,92236.0,92235.0,0.12986]
[1763511880630,0.4044552,92236.0,92235.0,0.12986]
[1763511881330,0.4044552,92236.0,92235.0,0.13086]
[1763511881532,0.3878752,92236.0,92235.0,0.2393363]
[1763511881730,0.26432,92236.0,92235.0,0.2393363]
[1763511883436,0.29698,92236.0,92235.0,0.13086]
[1763511884033,0.2804,92236.0,92235.0,0.13086]
[1763511885326,0.29698,92236.0,92235.0,0.13086]
[1763511887037,0.26432,92236.0,92235.0,0.13086]
[1763511887929,0.01624259,92245.0,92235.0,0.03143]
[1763511888129,0.3727858,92244.0,92243.0,0.09943]
[1763511890042,0.3888658,92244.0,92243.0,0.09943]
[1763511890235,0.3727858,92244.0,92243.0,0.09943]
[1763511890831,0.4054458,92244.0,92243.0,0.09943]
[1763511893940,0.3888658,92244.0,92243.0,0.09943]
[1763511894736,0.4054458,92244.0,92243.0,0.09943]
[1763511895135,0.4054458,92244.0,92243.0,0.1285835]
[1763511895334,0.37939616,92244.0,92243.0,0.1285835]
[1763511895837,0.37939616,92244.0,92243.0,0.2370504]
[1763511896039,0.00016259,92245.0,92244.0,0.09943]
[1763511896941,0.00016259,92245.0,92244.0,0.13847583]
[1763511896942,0.03282259,92245.0,92244.0,0.13847583]
[1763511897844,0.03282259,92245.0,92244.0,0.09943]
[1763511899035,0.01624259,92245.0,92244.0,0.09943]
[1763511899941,0.00016259,92245.0,92244.0,0.09943]
[1763511901139,0.00016259,92245.0,92241.0,0.41912474]
[1763511901140,0.1145881,92242.0,92241.0,0.41912474]
[1763511901340,0.00612,92241.0,92240.0,0.00219803]
[1763511901536,0.00016259,92245.0,92243.0,0.09775]
[1763511901740,0.00016259,92245.0,92244.0,0.2062157]
[1763511901936,0.26727259,92245.0,92244.0,0.13679534]
[1763511902243,0.26727259,92245.0,92244.0,0.09775]
[1763511902641,0.27056259,92245.0,92244.0,0.09775]
[1763511902945,0.27056259,92245.0,92244.0,0.13679534]
[1763511903142,0.26727259,92245.0,92244.0,0.13679534]
[1763511903451,0.26544259,92245.0,92244.0,0.09775]
[1763511903748,0.26827259,92245.0,92244.0,0.13679534]
[1763511903944,0.26544259,92245.0,92244.0,0.13679534]
[1763511904147,0.26444259,92245.0,92244.0,0.13679534]
[1763511904333,0.26544259,92245.0,92244.0,0.13679534]
[1763511905050,0.38002719,92245.0,92244.0,0.13679534]
[1763511905346,0.38002719,92245.0,92244.0,0.09775]
[1763511905744,0.37902719,92245.0,92244.0,0.09775]
[1763511906847,0.38002719,92245.0,92244.0,0.09775]
[1763511907233,0.1145881,92242.0,92241.0,0.03904534]
[1763511907442,0.1145881,92242.0,92240.0,0.07693803]
[1763511907443,0.00612,92241.0,92240.0,0.07693803]
[1763511907650,0.00612,92241.0,92240.0,0.15578829]
[1763511907850,0.00612,92241.0,92240.0,0.12650803]
[1763511909145,0.26444259,92245.0,92244.0,0.2062158]
[1763511909350,0.1547646,92262.0,92261.0,0.09775]
[1763511909541,0.3574,92262.0,92261.0,0.09775]
[1763511909748,0.3564,92262.0,92261.0,0.09775]
[1763511910750,0.2015658,92261.0,92260.0,0.00219803]
[1763511910946,0.2015658,92261.0,92255.0,0.02927422]
[1763511910947,0.2015717,92256.0,92255.0,0.02927422]
[1763511911150,0.2015717,92256.0,92255.0,0.04818]
[1763511911549,0.09312,92255.0,92254.0,0.02927422]
[1763511912754,0.04632,92255.0,92254.0,0.12702422]
[1763511913345,0.09512,92255.0,92254.0,0.09775]
[1763511913753,0.09412,92255.0,92254.0,0.12702422]
[1763511914058,0.09512,92255.0,92254.0,0.09775]
[1763511914349,0.06707325,92253.0,92252.0,0.00016259]
[1763511914555,0.06707325,92253.0,92252.0,0.04834259]
[1763511915749,0.06707325,92253.0,92252.0,0.12717083]
[1763511915956,0.06707325,92253.0,92252.0,0.09791259]
[1763511916553,0.06807325,92253.0,92252.0,0.09791259]
[1763511917053,0.06707325,92253.0,92252.0,0.09791259]
[1763511917253,0.06807325,92253.0,92252.0,0.09791259]
[1763511918371,0.06907325,92253.0,92252.0,0.09791259]
[1763511918972,0.06807325,92253.0,92252.0,0.09791259]
[1763511919568,0.06907325,92253.0,92252.0,0.09791259]
[1763511919868,0.06807325,92253.0,92252.0,0.09791259]
[1763511920373,0.06807325,92253.0,92252.0,0.00016259]
[1763511920676,0.09312,92238.0,92237.0,0.02925796]
[1763511920868,0.09312,92238.0,92235.0,0.02925796]
[1763511920869,0.201594,92237.0,92235.0,0.02925796]
[1763511921067,0.2015976,92234.0,92228.0,0.03903229]
[1763511921373,0.08194,92221.0,92220.0,0.02925796]
[1763511921573,0.08194,92221.0,92215.0,0.39983229]
[1763511921574,0.190434,92220.0,92215.0,0.3608]
[1763511921771,0.190434,92220.0,92219.0,0.08255221]
[1763511922373,0.190434,92220.0,92219.0,0.00013221]
[1763511927778,0.190434,92220.0,92219.0,0.08068221]
[1763511928283,0.4018,92224.0,92223.0,0.082]
[1763511928581,0.1494834,92229.0,92228.0,0.082]
[1763511928783,0.4532834,92229.0,92228.0,0.082]
[1763511928980,0.00016259,92230.0,92229.0,0.082]
[1763511929179,0.26440259,92230.0,92229.0,0.1904834]
[1763511929380,0.26440259,92230.0,92229.0,0.082]
[1763511929381,0.34496259,92230.0,92229.0,0.082]
[1763511930783,0.00016259,92230.0,92229.0,0.082]
[1763511930980,0.26440259,92230.0,92229.0,0.082]
[1763511931378,0.00016259,92230.0,92229.0,0.082]
[1763511932187,0.24902976,92258.0,92257.0,0.082]
[1763511932482,0.39210976,92258.0,92257.0,0.082]
[1763511932681,0.14058006,92258.0,92257.0,0.082]
[1763511932873,0.10102006,92258.0,92257.0,0.082]
[1763511933277,0.14058006,92258.0,92257.0,0.082]
[1763511933681,0.26424,92259.0,92258.0,0.1904493]
[1763511933884,0.00016259,92267.0,92266.0,0.082]
[1763511934278,0.04116259,92267.0,92266.0,0.082]
[1763511934479,0.08072259,92267.0,92266.0,0.082]
[1763511935182,0.08056,92261.0,92254.0,0.40174]
[1763511935384,0.1890128,92255.0,92254.0,0.4428]
[1763511935583,0.1084481,92260.0,92259.0,0.082]
[1763511935792,0.1890081,92260.0,92259.0,0.082]
[1763511936285,0.00216259,92267.0,92254.0,0.3608]
[1763511936286,0.08172259,92267.0,92266.0,0.082]
[1763511936781,0.00116259,92267.0,92266.0,0.1904399]
[1763511937288,0.00016259,92267.0,92266.0,0.1904399]
[1763511937488,0.3608,92297.0,92286.0,0.082]
[1763511937691,0.2642,92288.0,92286.0,0.082]
[1763511938787,0.2642,92288.0,92287.0,0.1904152]
[1763511938987,0.2642,92288.0,92287.0,0.082]
[1763511939790,0.34476,92288.0,92287.0,0.082]
[1763511940493,0.34476,92288.0,92287.0,0.04094]
[1763511940693,0.08056,92283.0,92282.0,0.04094]
[1763511940888,0.1889799,92283.0,92282.0,0.082]
[1763511941200,0.041,92283.0,92282.0,0.082]
[1763511941390,0.3072,92288.0,92287.0,0.082]
[1763511941585,0.34576,92288.0,92287.0,0.082]
[1763511941896,0.34476,92288.0,92287.0,0.082]
[1763511942495,0.34576,92288.0,92287.0,0.082]
[1763511942692,0.34676,92288.0,92287.0,0.082]
[1763511944283,0.2652,92288.0,92287.0,0.082]
[1763511944488,0.2662,92288.0,92287.0,0.082]
[1763511945089,0.34676,92288.0,92287.0,0.082]
[1763511945594,0.3072,92288.0,92287.0,0.082]
[1763511945898,0.34676,92288.0,92287.0,0.082]
[1763511946290,0.34676,92288.0,92287.0,0.1904152]
[1763511946990,0.34576,92288.0,92287.0,0.1904152]
[1763511947289,0.34676,92288.0,92287.0,0.082]
[1763511950300,0.34476,92288.0,92287.0,0.082]
[1763511950503,0.34476,92288.0,92286.0,0.4692159]
[1763511950504,0.041,92287.0,92286.0,0.3608]
[1763511950708,0.041,92287.0,92280.0,0.00219803]
[1763511950709,0.1889823,92281.0,92280.0,0.00219803]
[1763511950996,0.1889858,92278.0,92273.0,0.1084313]
[1763511951704,0.1889858,92278.0,92277.0,0.04110259]
[1763511953389,0.1889858,92278.0,92277.0,0.00016259]
[1763511953594,0.1899858,92278.0,92277.0,0.00016259]
[1763511953997,0.08156,92278.0,92277.0,0.08216259]
[1763511954193,0.001,92278.0,92277.0,0.44296259]
[1763511954506,0.26404,92281.0,92280.0,0.082]
[1763511954703,0.26404,92281.0,92280.0,0.08419803]
[1763511954906,0.30504,92281.0,92280.0,0.08419803]
[1763511956210,0.26404,92281.0,92280.0,0.08419803]
[1763511956412,0.43119938,92292.0,92291.0,0.082]
[1763511956912,0.51175938,92292.0,92291.0,0.082]
[1763511957210,0.51175938,92292.0,92291.0,0.1904105]
[1763511957606,0.51275938,92292.0,92291.0,0.1904105]
[1763511958008,0.40534998,92292.0,92291.0,0.1904105]
[1763511958203,0.266,92292.0,92291.0,0.1904105]
[1763511958404,0.002,92292.0,92291.0,0.1904105]
[1763511960122,0.00016259,92296.0,92291.0,0.1904105]
[1763511960123,0.00016259,92296.0,92295.0,0.2137958]
[1763511960312,0.08237,92319.0,92318.0,0.1911065]
[1763511960513,0.264,92320.0,92319.0,0.08273]
[1763511960718,0.264,92320.0,92313.0,0.02266]
[1763511960719,0.1083668,92329.0,92325.0,0.1911006]
[1763511960920,0.264,92332.0,92325.0,0.5519006]
[1763511961113,0.02229,92340.0,92325.0,0.5519006]
[1763511961114,0.03944,92340.0,92339.0,0.08273]
[1763511961417,0.08237,92350.0,92349.0,0.04156]
[1763511961621,0.08237,92350.0,92349.0,0.44353]
[1763511961824,0.1083381,92353.0,92352.0,0.08273]
[1763511962018,0.1477781,92353.0,92352.0,0.08273]
[1763511962321,0.08237,92362.0,92361.0,0.08273]
[1763511962625,0.3608,92371.0,92356.0,0.02266]
[1763511962626,0.08640145,92378.0,92365.0,0.08273]
[1763511962815,0.108305,92381.0,92365.0,0.08273]
[1763511963018,0.44317,92390.0,92389.0,0.04156]
[1763511963511,0.3608,92390.0,92389.0,0.10539]
[1763511963715,0.1082768,92405.0,92400.0,0.08273]
[1763511964018,0.3608,92407.0,92401.0,0.08273]
[1763511964325,0.1082719,92410.0,92405.0,0.08273]
[1763511964617,0.26392,92417.0,92405.0,0.08273]
[1763511964822,0.14798625,92406.0,92405.0,0.04156]
[1763511965021,0.08264055,92406.0,92405.0,0.04156]
[1763511965220,0.00027055,92406.0,92405.0,0.08273]
[1763511965520,0.08264055,92406.0,92405.0,0.08273]
[1763511966224,0.03944,92401.0,92400.0,0.46838803]
[1763511966523,0.08237,92401.0,92400.0,0.00219803]
[1763511967326,0.04271055,92406.0,92405.0,0.08273]
[1763511967521,0.03971055,92406.0,92405.0,0.08273]
[1763511967821,0.08264055,92406.0,92405.0,0.04156]
[1763511968123,0.08264055,92406.0,92400.0,0.00219803]
[1763511968124,0.1906515,92401.0,92400.0,0.00219803]
[1763511969424,0.08237,92401.0,92400.0,0.08492803]
[1763511969920,0.08237,92401.0,92391.0,0.3608]
[1763511969921,0.08237,92392.0,92391.0,0.3608]
[1763511970124,0.08237,92392.0,92382.0,0.3608]
[1763511970125,0.1906726,92383.0,92382.0,0.3608]
[1763511970423,0.08237,92381.0,92380.0,0.00236042]
[1763511971021,0.1083026,92383.0,92355.0,0.3608]
[1763511971223,0.3608,92387.0,92360.0,0.00219803]
[1763511971224,0.1906984,92361.0,92360.0,0.00219803]
[1763511971429,0.08237,92361.0,92360.0,0.00219803]
[1763511972026,0.08237,92361.0,92360.0,0.08492803]
[1763511972229,0.26376,92367.0,92360.0,0.08492803]
[1763511972530,0.26388184,92373.0,92372.0,0.08273]
[1763511972824,0.26388184,92373.0,92372.0,0.40236]
[1763511972825,0.34625184,92373.0,92372.0,0.40236]
[1763511973420,0.03960184,92373.0,92372.0,0.44353]
[1763511973728,0.00116184,92373.0,92372.0,0.44353]
[1763511974425,0.00216184,92373.0,92372.0,0.44353]
[1763511975125,0.00116184,92373.0,92372.0,0.44353]
[1763511975332,0.04160184,92373.0,92372.0,0.44353]
[1763511976130,0.04060184,92373.0,92372.0,0.44353]
[1763511976327,0.04160184,92373.0,92372.0,0.44353]
[1763511976529,0.44317,92397.0,92396.0,0.04156]
[1763511976730,0.08237,92383.0,92382.0,0.3608]
[1763511977025,0.1906726,92383.0,92382.0,0.3608]
[1763511977827,0.4543526,92383.0,92382.0,0.3608]
[1763511978027,0.4553526,92383.0,92382.0,0.3608]
[1763511978536,0.4553526,92383.0,92382.0,0.44353]
[1763511978840,0.4553526,92383.0,92382.0,0.04156]
[1763511979026,0.4573526,92383.0,92382.0,0.04156]
[1763511979230,0.26668,92383.0,92382.0,0.44353]
[1763511980129,0.34905,92383.0,92382.0,0.44353]
[1763511980522,0.34905,92383.0,92373.0,0.00016239]
[1763511980523,0.1906831,92374.0,92373.0,0.00016239]
[1763511980725,0.08237,92355.0,92354.0,0.00011542]
[1763511980930,0.5515054,92355.0,92354.0,0.00011542]
[1763511981124,0.5515054,92355.0,92326.0,0.3608]
[1763511981125,0.1907172,92345.0,92326.0,0.3608]
[1763511981334,0.08237,92331.0,92330.0,0.00219803]
[1763511981526,0.08237,92331.0,92330.0,0.08492803]
[1763511981727,0.03944,92331.0,92330.0,0.08492803]
[1763511981930,0.00016239,92340.0,92330.0,0.00219803]
[1763511982133,0.03427542,92339.0,92338.0,0.108355]
[1763511982435,0.03427542,92339.0,92338.0,0.0341]
[1763511982436,0.00011542,92339.0,92338.0,0.0341]
[1763511982740,0.06911,92337.0,92336.0,0.1083575]
[1763511983042,0.06911,92337.0,92336.0,0.1424575]
[1763511983424,0.00011542,92339.0,92336.0,0.1758975]
[1763511983739,0.00311542,92339.0,92338.0,0.06754]
[1763511983932,0.26679542,92339.0,92338.0,0.06754]
[1763511984139,0.29895542,92339.0,92338.0,0.06754]
[1763511984334,0.26479542,92339.0,92338.0,0.06754]
[1763511984536,0.00111542,92339.0,92338.0,0.06754]
[1763511985741,0.00211542,92339.0,92338.0,0.06754]
[1763511986127,0.00111542,92339.0,92338.0,0.06754]
[1763511986628,0.00211542,92339.0,92338.0,0.06754]
[1763511987232,0.03627542,92339.0,92338.0,0.06754]
[1763511987535,0.17957962,92339.0,92338.0,0.06754]
[1763511987743,0.07122542,92339.0,92338.0,0.06754]
[1763511988239,0.00211542,92339.0,92338.0,0.06754]
[1763511988829,0.00211542,92339.0,92337.0,0.4691565]
[1763511988830,9e-08,92340.0,92339.0,0.5754842]
[1763511989036,0.06925,92372.0,92371.0,0.0333]
[1763511989236,0.1775655,92372.0,92371.0,0.0333]
[1763511989439,0.06925,92371.0,92370.0,0.00219803]
[1763511989645,0.06925,92371.0,92370.0,0.06932803]
[1763511990740,0.07225,92371.0,92370.0,0.06932803]
[1763511991046,0.0376,92371.0,92370.0,0.06932803]
[1763511991239,0.3954,92390.0,92389.0,0.1754255]
[1763511991443,0.3608,92401.0,92400.0,0.1952926]
[1763511991745,0.3608,92401.0,92400.0,0.19749063]
[1763511992143,0.26368,92409.0,92405.0,0.1754068]
[1763511992648,0.06952055,92406.0,92405.0,0.06713]
[1763511992946,0.06925,92405.0,92404.0,0.1415776]
[1763511993147,0.06925,92405.0,92404.0,0.1754076]
[1763511993349,0.0346,92405.0,92404.0,0.1754076]
[1763511993752,0.1775315,92401.0,92400.0,0.00219803]
[1763511994638,0.3608,92401.0,92375.0,0.3608]
[1763511994838,0.06925,92391.0,92390.0,0.11049243]
[1763511995038,0.001,92405.0,92404.0,0.08701]
[1763511995243,0.06925,92401.0,92400.0,0.17761033]
[1763511995842,0.07025,92401.0,92400.0,0.17761033]
[1763511996347,0.07025,92401.0,92400.0,0.00219803]
[1763511996550,0.06925,92401.0,92400.0,0.00219803]
[1763511997940,0.01907,92404.0,92389.0,0.3608]
[1763511997941,0.1775444,92390.0,92389.0,0.3608]
[1763511998251,0.1775444,92390.0,92380.0,0.36096239]
[1763511998252,0.177555,92381.0,92380.0,0.00016239]
[1763511998445,0.177555,92381.0,92380.0,0.06949042]
[1763511998945,0.3608,92386.0,92385.0,0.06713]
[1763511999145,0.1072988,92387.0,92386.0,0.0333]
[1763511999352,0.3708588,92387.0,92386.0,0.0333]
[1763511999552,0.4401088,92387.0,92386.0,0.0333]
[1763511999756,0.108305,92381.0,92380.0,0.03446239]
[1763512000157,0.06925,92399.0,92381.0,0.1083043]
[1763512000462,0.06925,92399.0,92391.0,0.01988]
[1763512000463,0.1775358,92398.0,92391.0,0.01988]
[1763512000755,0.1775358,92398.0,92390.0,0.00219803]
[1763512001259,0.06925,92397.0,92396.0,0.141587]
[1763512001456,0.0346,92397.0,92396.0,0.536217]
[1763512001948,0.06925,92397.0,92396.0,0.536217]
[1763512002150,0.06925,92397.0,92396.0,0.3608]
[1763512002558,0.06952055,92406.0,92405.0,0.1082768]
[1763512002748,0.33308055,92406.0,92405.0,0.1082768]
[1763512003150,0.03487055,92406.0,92405.0,0.1754068]
[1763512003347,0.00027055,92406.0,92405.0,0.5362068]
[1763512003552,0.06925,92430.0,92429.0,0.1082477]
[1763512003754,0.1775019,92427.0,92420.0,0.00016228]
[1763512003954,0.1775019,92427.0,92426.0,0.108252]
[1763512004245,0.1775019,92427.0,92420.0,0.00236031]
[1763512004246,0.3608,92428.0,92422.0,0.1082557]
[1763512004451,0.06925,92421.0,92420.0,0.00236031]
[1763512005951,0.07125,92421.0,92420.0,0.00236031]
[1763512006162,0.07325,92421.0,92420.0,0.00016228]
[1763512006759,0.07325,92421.0,92405.0,0.3608]
[1763512006760,0.1775255,92406.0,92405.0,0.3608]
[1763512006965,0.4410455,92406.0,92405.0,0.3608]
[1763512008153,0.4430455,92406.0,92405.0,0.3608]
[1763512008653,0.1775313,92401.0,92400.0,0.00219803]
[1763512008857,0.002,92406.0,92405.0,0.1754067]
[1763512009162,0.002,92406.0,92405.0,0.5362067]
[1763512009562,0.0018374,92406.0,92405.0,0.5362067]
[1763512009756,0.0008374,92406.0,92405.0,0.5362067]
[1763512010855,0.0008374,92406.0,92405.0,0.9362067]
[1763512011159,0.00016193,92415.0,92414.0,0.1753961]
[1763512011359,0.04948,92432.0,92431.0,0.1753762]
[1763512011664,0.11873,92432.0,92431.0,0.0333]
[1763512011962,0.3608,92444.0,92441.0,0.0333]
[1763512011963,0.1082337,92442.0,92441.0,0.0333]
[1763512012160,0.3608,92444.0,92441.0,0.1415321]
[1763512012356,0.21654726,92460.0,92440.0,0.00219803]
[1763512012357,0.0346,92441.0,92440.0,0.00219803]
[1763512012751,0.43005,92441.0,92440.0,0.00219803]
[1763512012958,0.43005,92441.0,92433.0,0.00016228]
[1763512012959,0.1774927,92434.0,92433.0,0.00016228]
[1763512013759,0.1774927,92434.0,92416.0,0.3608]
[1763512013760,0.1082626,92417.0,92416.0,0.3608]
[1763512013961,0.1775126,92417.0,92416.0,0.3608]
[1763512014262,0.1775126,92417.0,92408.0,0.3608]
[1763512014263,0.177522,92409.0,92408.0,0.3608]
[1763512015056,0.26344,92411.0,92410.0,0.06932803]
[1763512015258,0.06925,92417.0,92416.0,0.1082629]
[1763512015454,0.26360228,92418.0,92417.0,0.06713]
[1763512015652,0.33285228,92418.0,92417.0,0.06713]
[1763512015964,0.06925,92417.0,92416.0,0.4690629]
[1763512016164,0.00016228,92418.0,92417.0,0.06713]
[1763512016565,0.00016228,92418.0,92417.0,0.08701]
[1763512017459,0.00016228,92418.0,92417.0,0.1952726]
[1763512017656,0.06879,92417.0,92416.0,0.3608]
[1763512017867,0.08751,92417.0,92416.0,0.3608]
[1763512018165,0.06979,92417.0,92416.0,0.3608]
[1763512018359,0.06979,92417.0,92416.0,0.39599]
[1763512018563,0.06879,92417.0,92416.0,0.3608]
[1763512018865,0.001,92417.0,92416.0,0.43113]
[1763512019456,0.00016228,92418.0,92417.0,0.1959926]
[1763512021569,0.06879,92407.0,92406.0,0.02898471]
[1763512021870,0.06879,92401.0,92400.0,0.3608]
[1763512022074,0.06879,92401.0,92400.0,0.36299803]
[1763512022272,0.06879,92401.0,92400.0,0.47128053]
[1763512022568,0.06879,92410.0,92409.0,0.143462]
[1763512022763,0.3608,92419.0,92417.0,0.03519]
[1763512022764,0.10842458,92418.0,92417.0,0.03519]
[1763512022968,0.37182458,92418.0,92417.0,0.03519]
[1763512023169,0.40565458,92418.0,92417.0,0.03519]
[1763512023364,0.1770608,92410.0,92409.0,0.3608]
[1763512023560,0.00016228,92418.0,92417.0,0.07033]
[1763512023766,0.26356228,92418.0,92417.0,0.07033]
[1763512024377,0.33235228,92418.0,92417.0,0.03519]
[1763512024571,0.29739228,92418.0,92417.0,0.07033]
[1763512024872,0.00016228,92418.0,92417.0,0.08773]
[1763512025268,0.00016228,92418.0,92417.0,0.44853]
[1763512025669,0.1082444,92433.0,92432.0,0.03519]
[1763512026067,0.4404344,92433.0,92432.0,0.03519]
[1763512026274,0.06879,92431.0,92430.0,0.00219803]
[1763512026578,0.06879,92431.0,92430.0,0.03738803]
[1763512026766,0.3716444,92433.0,92421.0,0.00016228]
[1763512026767,0.1770467,92422.0,92421.0,0.00016228]
[1763512027372,0.1082505,92428.0,92424.0,0.03519]
[1763512027674,0.1082505,92428.0,92421.0,0.00016228]
[1763512027675,0.1420656,92440.0,92439.0,0.03519]
[1763512027866,0.06879,92440.0,92439.0,0.03519]
[1763512028064,0.4054609,92444.0,92443.0,0.03519]
[1763512028275,0.4054609,92444.0,92440.0,0.03738803]
[1763512028276,0.1420645,92441.0,92440.0,0.03738803]
[1763512028472,0.1420645,92441.0,92440.0,0.07252803]
[1763512028877,0.1770245,92441.0,92440.0,0.07252803]
[1763512029078,0.1770245,92441.0,92440.0,0.00219803]
[1763512029775,0.1770315,92435.0,92425.0,0.1082524]